bitfinex/quotes_SOLUSD_20240712
["timestamp","ask_amount","ask_price","bid_price","bid_amount"]
[1720758205873,14.46,136.58,136.55,7.3233]
[1720758206993,14.46,136.58,136.56,7.3226]
[1720758207288,14.46,136.58,136.55,7.323]
[1720758209388,14.46,136.58,136.54,18.3096]
[1720758209586,14.46,136.56,136.54,18.3096]
[1720758210662,14.46,136.55,136.52,6.3146]
[1720758210862,14.46,136.53,136.52,6.3146]
[1720758211077,14.46,136.53,136.5,23.6695]
[1720758211276,7.3246,136.53,136.5,16.3438]
[1720758211475,14.46,136.52,136.49,13.4373]
[1720758212391,14.46,136.52,136.49,6.111]
[1720758212987,14.46,136.52,136.49,7.57166022]
[1720758213292,14.46,136.52,136.5,7.326]
[1720758214688,14.46,136.52,136.5,25.6408]
[1720758214993,6.89147057,136.58,136.5,14.46]
[1720758215198,14.46,136.56,136.52,25.6369]
[1720758215494,14.46,136.54,136.5,18.3149]
[1720758215988,14.46,136.54,136.51,7.3251]
[1720758216369,14.46,136.55,136.51,7.3251]
[1720758216883,14.46,136.54,136.51,7.3251]
[1720758218896,14.46,136.54,136.52,25.6369]
[1720758219090,14.46,136.55,136.52,25.6369]
[1720758219971,18.306,136.57,136.49,13.4374]
[1720758220174,21.7845,136.53,136.49,6.111]
[1720758220594,14.46,136.53,136.49,13.4371]
[1720758220982,14.46,136.53,136.49,14.90098383]
[1720758221309,14.46,136.53,136.49,33.21648383]
[1720758221877,14.46,136.53,136.49,31.7526]
[1720758222393,21.7845,136.53,136.49,31.7526]
[1720758222589,14.46,136.52,136.49,31.7526]
[1720758231905,7.3261,136.5,136.46,7.3277]
[1720758232217,14.46,136.48,136.46,7.3277]
[1720758232389,14.46,136.49,136.46,7.3277]
[1720758232585,7.3255,136.51,136.47,7.3275]
[1720758232906,14.46,136.5,136.48,7.327]
[1720758233109,14.46,136.5,136.47,7.3274]
[1720758233605,14.46,136.49,136.46,25.647]
[1720758233806,14.46,136.5,136.46,25.647]
[1720758234011,14.46,136.5,136.47,7.3273]
[1720758234486,14.46,136.49,136.46,25.647]
[1720758239320,7.326,136.5,136.46,25.647]
[1720758239502,14.46,136.49,136.46,25.647]
[1720758239813,7.3256,136.51,136.47,7.3275]
[1720758239988,14.46,136.49,136.46,18.3191]
[1720758240498,14.46,136.49,136.46,25.647]
[1720758241099,14.46,136.49,136.47,7.3275]
[1720758241514,14.46,136.5,136.47,7.3275]
[1720758241694,21.7861,136.5,136.46,25.6471]
[1720758241894,14.46,136.49,136.46,25.6471]
[1720758242390,21.7865,136.49,136.46,18.3191]
[1720758242605,14.46,136.49,136.46,18.3191]
[1720758243118,21.7857,136.51,136.47,7.3274]
[1720758243303,14.46,136.49,136.46,25.6471]
[1720758246412,14.46,136.49,136.46,18.3191]
[1720758247015,14.46,136.49,136.46,25.647]
[1720758248716,21.7861,136.5,136.46,25.647]
[1720758249809,14.46,136.49,136.46,25.647]
[1720758255223,14.46,136.49,136.37,20.0]
[1720758255224,7.3289,136.45,136.41,13.7459]
[1720758255425,14.46,136.43,136.41,24.742]
[1720758255926,14.46,136.43,136.41,6.4151]
[1720758256329,14.46,136.42,136.39,25.6614]
[1720758258417,7.3294,136.44,136.4,7.3311]
[1720758258615,14.46,136.44,136.4,7.3311]
[1720758258926,21.7893,136.44,136.4,7.3311]
[1720758259536,14.46,136.43,136.39,25.6613]
[1720758259835,14.46,136.43,136.4,7.3313]
[1720758261537,7.3293,136.44,136.4,7.3313]
[1720758261747,14.46,136.43,136.4,7.3313]
[1720758262726,21.7904,136.42,136.38,13.9211]
[1720758263334,14.46,136.41,136.38,13.9211]
[1720758265739,14.46,136.41,136.38,7.3322]
[1720758267238,14.46,136.41,136.38,25.6632]
[1720758267422,14.46,136.42,136.38,25.6632]
[1720758268331,14.46,136.42,136.38,18.331]
[1720758268635,14.46,136.41,136.37,7.3327]
[1720758268841,14.46,136.4,136.37,7.3327]
[1720758269423,21.7911,136.41,136.37,7.3327]
[1720758270445,21.7914,136.4,136.36,25.667]
[1720758271555,22.08231059,136.43,136.35,7.3339]
[1720758271556,7.332,136.39,136.35,7.3339]
[1720758271754,21.792,136.39,136.35,7.3339]
[1720758273549,14.46,136.39,136.36,7.3335]
[1720758274253,21.7932,136.37,136.34,7.352]
[1720758274454,21.7932,136.37,136.32,15.3057011]
[1720758274646,21.7925,136.38,136.32,0.8457011]
[1720758274846,14.46,136.39,136.36,7.3334]
[1720758275054,7.3309,136.41,136.37,7.3326]
[1720758275257,14.46,136.4,136.36,21.7933]
[1720758275439,21.7914,136.4,136.36,21.7933]
[1720758275644,7.332,136.39,136.36,18.3334]
[1720758276146,16.6602,136.38,136.32,0.8457011]
[1720758276344,14.46,136.34,136.32,0.8457011]
[1720758276868,21.7946,136.34,136.32,0.8457011]
[1720758277153,7.3346,136.34,136.32,0.8457011]
[1720758277665,7.3337,136.36,136.32,0.8457011]
[1720758277955,21.7937,136.36,136.32,8.1812011]
[1720758278256,7.3337,136.36,136.32,22.6412011]
[1720758278838,21.7937,136.36,136.32,8.1812011]
[1720758280450,21.7937,136.36,136.32,0.8457011]
[1720758280643,7.3327,136.38,136.33,7.3347]
[1720758280842,7.332,136.39,136.35,7.334]
[1720758281069,21.792,136.39,136.35,7.334]
[1720758281372,10.57898605,136.4,136.34,14.46]
[1720758281373,21.7925,136.38,136.34,7.3343]
[1720758281961,21.7925,136.38,136.34,18.3363]
[1720758282257,21.7925,136.38,136.34,25.6707]
[1720758282461,7.3338,136.36,136.32,15.3057011]
[1720758282660,14.46,136.36,136.32,8.1808011]
[1720758282843,21.7931,136.37,136.32,22.6408011]
[1720758283458,21.7931,136.37,136.33,7.3351]
[1720758284356,21.7935,136.36,136.32,8.1812011]
[1720758284663,21.7931,136.37,136.33,7.3349]
[1720758284848,14.46,136.37,136.33,25.6725]
[1720758285775,21.793,136.37,136.33,25.6725]
[1720758286362,21.7936,136.36,136.33,18.3376]
[1720758286552,14.46,136.36,136.32,0.8457011]
[1720758286754,14.46,136.35,136.32,0.8457011]
[1720758287455,21.7943,136.35,136.32,0.8457011]
[1720758288473,14.46,136.34,136.32,0.8457011]
[1720758289362,14.46,136.34,136.32,8.1813011]
[1720758289561,7.61987859,136.37,136.36,7.3335]
[1720758289763,2.97840406,136.43,136.34,14.46]
[1720758289764,14.46,136.39,136.34,14.46]
[1720758289967,22.07600933,136.4,136.37,7.3326]
[1720758290376,7.61600933,136.4,136.37,7.3326]
[1720758290557,14.46,136.39,136.37,7.3326]
[1720758290760,7.61600933,136.4,136.37,7.3326]
[1720758291083,7.33,136.43,136.39,7.3319]
[1720758291261,14.46,136.41,136.38,8.31559353]
[1720758291577,14.46,136.42,136.38,8.31559353]
[1720758291774,14.46,136.41,136.38,8.31559353]
[1720758292160,7.3304,136.42,136.38,8.31559353]
[1720758292360,14.46,136.41,136.38,8.31559353]
[1720758292777,14.46,136.41,136.38,7.3322]
[1720758293079,14.46,136.41,136.37,25.6651]
[1720758293780,14.46,136.4,136.37,25.6651]
[1720758294382,14.46,136.41,136.37,25.6651]
[1720758294762,7.3305,136.42,136.38,7.3323]
[1720758295160,14.46,136.41,136.38,7.3323]
[1720758295362,21.7909,136.41,136.37,25.6652]
[1720758295972,14.46,136.41,136.38,7.3323]
[1720758299291,21.7908,136.41,136.37,25.6651]
[1720758299585,14.46,136.41,136.38,7.3324]
[1720758299885,7.60651092,136.43,136.4,7.331]
[1720758300094,14.46,136.43,136.4,7.331]
[1720758300590,14.46,136.42,136.39,25.661]
[1720758300774,14.46,136.42,136.4,7.3313]
[1720758301097,7.329,136.45,136.41,7.3308]
[1720758301269,14.46,136.44,136.41,7.3308]
[1720758301581,14.46,136.43,136.4,25.6584]
[1720758302185,21.7898,136.43,136.39,7.3317]
[1720758302388,21.7903,136.42,136.38,25.6631]
[1720758302684,14.46,136.41,136.38,25.6631]
[1720758302886,14.46,136.4,136.38,25.6631]
[1720758303681,14.46,136.41,136.39,7.3318]
[1720758303870,14.46,136.42,136.39,7.3317]
[1720758304066,21.7905,136.42,136.38,25.663]
[1720758304291,21.7905,136.42,136.38,27.12763591]
[1720758304795,14.46,136.41,136.38,25.663]
[1720758307568,21.7908,136.41,136.38,25.663]
[1720758307882,21.7914,136.4,136.36,13.5915]
[1720758308086,21.7914,136.4,136.36,31.9252]
[1720758309001,14.46,136.4,136.37,7.3328]
[1720758309499,21.791,136.41,136.37,7.3328]
[1720758311286,14.46,136.4,136.36,24.5922]
[1720758311495,14.46,136.39,136.36,31.9257]
[1720758311795,21.792,136.39,136.36,24.5922]
[1720758312379,7.3324,136.38,136.34,21.7944]
[1720758312585,21.7924,136.38,136.34,7.3344]
[1720758312990,25.94833908,136.42,136.33,18.3367]
[1720758312991,14.46,136.36,136.33,18.3367]
[1720758313176,14.46,136.36,136.33,25.6718]
[1720758314478,14.46,136.37,136.33,25.6718]
[1720758314800,21.7929,136.37,136.33,25.6718]
[1720758315295,14.46,136.37,136.34,7.3345]
[1720758316192,14.46,136.38,136.33,32.7967]
[1720758316374,14.46,136.38,136.35,7.3339]
[1720758317103,21.7925,136.38,136.34,7.3344]
[1720758317301,14.46,136.38,136.34,7.3344]
[1720758317518,14.46,136.38,136.35,7.3339]
[1720758317974,14.46,136.38,136.34,7.3343]
[1720758318585,14.46,136.38,136.35,7.334]
[1720758319201,14.46,136.38,136.33,18.3367]
[1720758319202,21.7927,136.38,136.33,18.3367]
[1720758319398,21.7927,136.38,136.33,25.6714]
[1720758319399,14.46,136.37,136.33,25.6714]
[1720758319698,21.793,136.37,136.33,25.6714]
[1720758320806,14.46,136.36,136.33,25.6714]
[1720758321176,7.61963382,136.38,136.34,14.46]
[1720758321794,22.07963382,136.38,136.33,14.46]
[1720758322397,14.95223382,136.38,136.33,14.46]
[1720758322608,22.07963382,136.38,136.33,14.46]
[1720758323099,29.41213382,136.38,136.33,14.46]
[1720758323412,29.41213382,136.38,136.32,7.4301011]
[1720758323702,14.46,136.37,136.32,21.8901011]
[1720758324901,14.46,136.36,136.32,7.4301011]
[1720758326498,7.335,136.34,136.32,0.8457011]
[1720758326707,14.46,136.33,136.32,0.8457011]
[1720758327183,7.3347,136.34,136.32,0.8457011]
[1720758327501,14.46,136.34,136.32,0.8457011]
[1720758327890,18.3337,136.37,136.32,0.8457011]
[1720758327891,14.46,136.33,136.32,0.8457011]
[1720758328100,7.3346,136.34,136.32,0.8457011]
[1720758328411,14.46,136.34,136.32,0.8457011]
[1720758329302,21.7947,136.34,136.32,0.8457011]
[1720758329888,14.46,136.34,136.32,0.8457011]
[1720758330107,7.3341,136.35,136.32,0.8457011]
[1720758330308,14.46,136.34,136.32,0.8457011]
[1720758330483,21.7941,136.35,136.32,0.8457011]
[1720758330685,7.3341,136.35,136.32,0.8457011]
[1720758330993,21.7941,136.35,136.32,0.8457011]
[1720758331310,29.46250235,136.35,136.32,0.8457011]
[1720758331483,7.3347,136.34,136.32,0.8457011]
[1720758331682,21.7947,136.34,136.32,0.8457011]
[1720758332104,14.46,136.34,136.32,0.8457011]
[1720758332289,21.7949,136.34,136.32,0.8457011]
[1720758333095,7.3349,136.34,136.32,0.8457011]
[1720758333402,21.7949,136.34,136.32,0.8457011]
[1720758333592,7.3351,136.33,136.32,0.8457011]
[1720758334281,21.7951,136.33,136.32,0.8457011]
[1720758335912,7.3346,136.34,136.32,0.8457011]
[1720758336206,14.46,136.33,136.32,0.8457011]
[1720758336409,21.7951,136.33,136.32,0.8457011]
[1720758341720,7.66840235,136.35,136.32,0.8457011]
[1720758342019,22.12840235,136.35,136.32,0.8457011]
[1720758342205,29.46270235,136.35,136.32,0.8457011]
[1720758342514,7.3346,136.34,136.32,0.8457011]
[1720758342709,21.7946,136.34,136.32,0.8457011]
[1720758343514,7.66840235,136.35,136.32,0.8457011]
[1720758343515,21.7951,136.33,136.32,0.8457011]
[1720758344226,14.46,136.33,136.32,0.8457011]
[1720758344917,21.7948,136.34,136.32,0.8457011]
[1720758346015,7.3351,136.33,136.32,0.8457011]
[1720758346517,7.3347,136.34,136.32,0.8457011]
[1720758346716,22.12650467,136.34,136.32,0.8457011]
[1720758348726,29.46120467,136.34,136.32,0.8457011]
[1720758349423,14.46,136.33,136.32,0.8457011]
[1720758350026,7.66650467,136.34,136.32,0.8457011]
[1720758350199,22.12650467,136.34,136.32,0.8457011]
[1720758350622,29.46120467,136.34,136.32,0.8457011]
[1720758351014,7.3351,136.33,136.32,0.8457011]
[1720758351210,21.7951,136.33,136.32,0.8457011]
[1720758353112,38.6842,136.32,136.18,0.8457011]
[1720758353313,38.6842,136.32,136.2,14.46]
[1720758353314,7.3398,136.25,136.2,14.46]
[1720758353622,7.3398,136.25,136.21,14.46]
[1720758353933,7.3399,136.24,136.2,14.46]
[1720758354223,14.46,136.23,136.18,0.8457011]
[1720758354431,14.46,136.2,136.18,0.8457011]
[1720758354609,21.8016,136.21,136.18,0.8457011]
[1720758355327,21.8026,136.19,136.18,0.8457011]
[1720758355616,30.0,136.19,136.18,0.8457011]
[1720758355825,21.8023,136.2,136.18,0.8457011]
[1720758356015,7.3426,136.19,136.18,0.8457011]
[1720758356225,7.3421,136.2,136.18,0.8457011]
[1720758356524,21.8026,136.19,136.18,0.8457011]
[1720758356708,21.8023,136.2,136.18,0.8457011]
[1720758356906,7.3423,136.2,136.18,0.8457011]
[1720758357213,14.46,136.2,136.18,0.8457011]
[1720758357405,14.46,136.19,136.18,0.8457011]
[1720758357821,21.8026,136.19,136.18,0.8457011]
[1720758358533,7.66570638,136.21,136.18,0.8457011]
[1720758358825,29.46760638,136.21,136.18,0.8457011]
[1720758359026,14.46,136.19,136.18,0.8457011]
[1720758359228,21.8026,136.19,136.18,0.8457011]
[1720758359719,21.8026,136.19,136.11,6.1024]
[1720758359720,7.3441,136.17,136.12,1.46734328]
[1720758359925,14.46,136.16,136.12,1.46734328]
[1720758360523,26.02000638,136.21,136.12,1.46734328]
[1720758360524,7.66570638,136.21,136.15,59.1061]
[1720758360722,7.3396,136.25,136.16,1.46698276]
[1720758360927,14.46,136.24,136.19,14.46]
[1720758361231,7.65716303,136.26,136.15,6.1225]
[1720758361232,7.3417,136.21,136.15,6.1225]
[1720758361525,14.46,136.2,136.16,45.0]
[1720758361824,2.96082127,136.25,136.17,14.46]
[1720758362030,7.3401,136.24,136.18,59.46]
[1720758362207,7.3406,136.23,136.18,59.46]
[1720758362523,7.3406,136.23,136.18,45.0]
[1720758362833,7.3411,136.22,136.18,45.0]
[1720758363018,7.3411,136.22,136.16,0.82857913]
[1720758363217,7.3411,136.22,136.17,0.82839661]
[1720758363541,7.3411,136.22,136.18,0.82833577]
[1720758363823,2.96082127,136.25,136.16,45.0]
[1720758364403,7.3407,136.23,136.16,45.0]
[1720758365035,7.34,136.24,136.16,45.0]
[1720758365335,10.30042127,136.25,136.16,67.03]
[1720758365508,7.65716303,136.26,136.18,28.4036]
[1720758365712,7.3383,136.27,136.19,45.0]
[1720758366148,7.3383,136.27,136.2,1.46784743]
[1720758366431,7.3383,136.27,136.21,1.46773976]
[1720758366632,17.95640615,136.29,136.21,1.46773976]
[1720758367139,10.61880615,136.29,136.21,1.46773976]
[1720758368608,7.3389,136.26,136.21,1.46773976]
[1720758369031,29.05,136.28,136.2,1.467632]
[1720758369413,32.01082127,136.28,136.19,45.0]
[1720758370025,7.3401,136.24,136.19,45.0]
[1720758370212,7.3391,136.26,136.19,45.0]
[1720758371114,7.34,136.24,136.19,45.0]
[1720758371816,7.3401,136.24,136.18,6.3736]
[1720758372134,32.01082127,136.28,136.19,45.0]
[1720758372309,7.3395,136.25,136.19,45.0]
[1720758372511,7.3403,136.24,136.19,45.0]
[1720758372723,7.3403,136.24,136.2,0.70093327]
[1720758373437,7.3403,136.24,136.2,0.85182942]
[1720758373814,7.3403,136.24,136.19,1.2370302]
[1720758374026,7.3396,136.25,136.21,1.31433854]
[1720758374408,7.3395,136.25,136.21,1.31433854]
[1720758375021,7.3395,136.25,136.2,1.35072841]
[1720758375206,7.3395,136.25,136.21,1.35062924]
[1720758375547,50.35582127,136.28,136.18,6.3736]
[1720758375548,7.3406,136.23,136.19,1.35062924]
[1720758375837,18.348,136.26,136.18,7.72422924]
[1720758376008,61.5259,136.25,136.18,6.3736]
[1720758376334,7.3419,136.21,136.18,6.3736]
[1720758376915,7.3412,136.22,136.18,6.3736]
[1720758378539,7.66300093,136.25,136.18,6.3736]
[1720758378918,15.00290093,136.25,136.18,6.3736]
[1720758379115,7.66300093,136.25,136.18,6.3736]
[1720758379314,7.66300093,136.25,136.19,46.15567051]
[1720758379536,7.66300093,136.25,136.2,15.6243]
[1720758379739,7.66300093,136.25,136.21,1.15550123]
[1720758380439,2.96082127,136.28,136.2,15.6243]
[1720758380646,10.29892127,136.28,136.21,45.0]
[1720758380845,7.3383,136.27,136.21,45.0]
[1720758381851,7.3392,136.26,136.2,15.6243]
[1720758382145,7.3394,136.25,136.2,15.6243]
[1720758382345,7.3401,136.24,136.2,15.6243]
[1720758383154,7.3394,136.25,136.21,1.00463813]
[1720758383525,22.96082127,136.27,136.22,0.70147252]
[1720758383526,2.96082127,136.27,136.22,0.70147252]
[1720758383745,2.96082127,136.27,136.21,1.12960566]
[1720758383746,7.3389,136.26,136.21,1.12960566]
[1720758384048,10.29912127,136.27,136.21,1.12960566]
[1720758384452,7.3399,136.25,136.21,45.0]
[1720758384631,7.3403,136.24,136.2,15.6243]
[1720758385532,7.3407,136.23,136.19,1.46813609]
[1720758386761,7.3402,136.24,136.19,1.46813609]
[1720758387123,7.3396,136.25,136.19,1.46813609]
[1720758387336,21.30682127,136.27,136.19,45.0]
[1720758387545,7.3403,136.24,136.18,6.3736]
[1720758387955,7.3395,136.25,136.18,6.3736]
[1720758388132,7.3395,136.25,136.19,45.0]
[1720758388735,7.3401,136.24,136.19,45.0]
[1720758390246,7.3396,136.25,136.19,45.0]
[1720758390444,2.96082127,136.27,136.19,45.0]
[1720758390654,7.3395,136.25,136.19,45.0]
[1720758391152,14.99080707,136.25,136.19,45.0]
[1720758391529,7.3408,136.23,136.18,6.3736]
[1720758391728,26.00110707,136.25,136.18,6.3736]
[1720758392342,7.3407,136.23,136.18,6.3736]
[1720758392731,14.99110707,136.25,136.19,1.46245219]
[1720758392934,7.65130707,136.25,136.19,1.46245219]
[1720758393143,7.3405,136.23,136.19,1.46245219]
[1720758393454,7.3405,136.23,136.18,6.3736]
[1720758395428,25.99990707,136.25,136.18,6.3736]
[1720758395635,7.3419,136.21,136.18,6.3736]
[1720758396750,7.3419,136.21,136.15,6.6052]
[1720758397352,7.3422,136.2,136.15,6.6052]
[1720758397735,7.3422,136.2,136.09,25.0]
[1720758397736,29.05,136.18,136.04,6.5731]
[1720758397938,35.672,136.19,136.04,6.5731]
[1720758398141,7.3451,136.15,136.04,6.5731]
[1720758398436,20.0,136.17,136.05,51.08]
[1720758398746,7.3452,136.15,136.05,51.08]
[1720758399142,29.05,136.18,136.05,51.08]
[1720758399347,7.3452,136.15,136.05,51.08]
[1720758399754,7.3454,136.14,136.06,1.46909279]
[1720758399961,47.4084,136.18,136.04,28.4488011]
[1720758399962,7.3459,136.13,136.04,28.4488011]
[1720758400156,7.3455,136.14,136.05,20.0]
[1720758400339,7.3455,136.14,136.05,40.59582321]
[1720758400541,7.3449,136.15,136.05,40.59582321]
[1720758401257,47.4084,136.18,136.05,40.59582321]
[1720758401473,7.66496905,136.15,136.05,69.64582321]
[1720758401762,7.3449,136.15,136.06,1.46776421]
[1720758401941,15.00961219,136.15,136.06,66.33536641]
[1720758402267,7.3454,136.14,136.06,66.33536641]
[1720758402644,15.00961219,136.15,136.06,66.33536641]
[1720758403036,15.00961219,136.15,136.07,43.0330022]
[1720758403239,7.66471219,136.15,136.08,1.46909249]
[1720758403453,15.00951219,136.15,136.08,1.46909249]
[1720758404445,7.66471219,136.15,136.08,1.46909249]
[1720758404650,7.66471219,136.15,136.08,46.46909249]
[1720758405161,7.66471219,136.15,136.08,68.49909249]
[1720758405373,7.3439,136.17,136.08,68.49909249]
[1720758405865,7.66391971,136.18,136.07,45.1954]
[1720758406054,7.3448,136.15,136.09,1.46894132]
[1720758406652,7.3448,136.15,136.07,23.1654]
[1720758406856,7.3448,136.15,136.07,45.1954]
[1720758407061,7.3448,136.15,136.07,23.1654]
[1720758407259,7.66391971,136.18,136.08,45.91625794]
[1720758407453,7.3444,136.16,136.08,45.91625794]
[1720758407658,7.3444,136.16,136.08,45.0]
[1720758408060,7.66391971,136.18,136.07,10.0]
[1720758408267,15.00741971,136.18,136.08,6.4402]
[1720758408462,7.66391971,136.18,136.08,6.4402]
[1720758408678,7.3438,136.17,136.08,6.4402]
[1720758408984,7.3438,136.17,136.09,22.03]
[1720758409562,7.3438,136.17,136.1,67.03]
[1720758409763,15.00731971,136.18,136.11,15.0775]
[1720758410770,7.3439,136.17,136.11,15.0775]
[1720758412076,7.3446,136.16,136.11,15.0775]
[1720758412463,7.3446,136.16,136.1,45.0]
[1720758412665,7.3446,136.16,136.09,45.0]
[1720758412867,7.66391971,136.18,136.09,45.0]
[1720758413050,7.66391971,136.18,136.1,22.03]
[1720758413256,15.00721971,136.18,136.11,45.93236083]
[1720758413771,15.00721971,136.18,136.11,0.93236083]
[1720758414358,7.66391971,136.18,136.11,0.93236083]
[1720758414562,7.3439,136.17,136.1,45.0]
[1720758414762,7.3443,136.16,136.09,45.0]
[1720758416159,7.3438,136.17,136.1,0.69619136]
[1720758416362,7.3438,136.17,136.11,0.69614062]
[1720758416675,7.66391971,136.18,136.12,1.13397586]
[1720758416865,7.3417,136.21,136.12,1.13397586]
[1720758417065,7.66076188,136.21,136.12,46.13397586]
[1720758417269,7.66076188,136.21,136.12,68.16397586]
[1720758417472,15.00246188,136.21,136.12,67.03]
[1720758418083,15.00246188,136.21,136.13,6.3915]
[1720758418460,15.00246188,136.21,136.14,46.46850477]
[1720758418666,15.00246188,136.21,136.14,45.0]
[1720758418977,7.3427,136.19,136.15,1.40683986]
[1720758419280,7.3422,136.2,136.15,1.40683986]
[1720758419482,7.3422,136.2,136.13,6.3915]
[1720758419483,7.3422,136.2,136.14,45.0]
[1720758420367,7.3427,136.19,136.13,6.3915]
[1720758420567,7.66076188,136.21,136.13,6.3915]
[1720758420767,7.66076188,136.21,136.14,83.6845]
[1720758420961,2.96082127,136.26,136.14,83.6845]
[1720758421153,7.658867,136.25,136.15,1.4626326]
[1720758421360,7.3406,136.23,136.15,1.4626326]
[1720758421876,7.3426,136.2,136.15,1.4626326]
[1720758422077,7.3427,136.19,136.15,1.4626326]
[1720758422263,18.3514,136.23,136.15,1.4626326]
[1720758422464,7.3416,136.21,136.15,1.4626326]
[1720758422876,7.3412,136.22,136.14,16.6545]
[1720758423269,7.3418,136.21,136.14,16.6545]
[1720758423476,7.3421,136.2,136.14,16.6545]
[1720758423667,7.3417,136.21,136.14,16.6545]
[1720758424066,7.3423,136.2,136.14,16.6545]
[1720758424968,16.6459,136.21,136.13,6.3915]
[1720758425272,7.3432,136.18,136.13,6.3915]
[1720758425473,7.3428,136.19,136.13,6.3915]
[1720758425879,7.3428,136.19,136.14,1.46871773]
[1720758426184,7.3428,136.19,136.15,1.46860985]
[1720758426403,7.3428,136.19,136.14,1.46875724]
[1720758426884,16.6459,136.21,136.14,1.46875724]
[1720758427486,16.6459,136.21,136.13,6.3915]
[1720758427487,7.3428,136.19,136.15,1.46865008]
[1720758427687,7.3428,136.19,136.13,6.3915]
[1720758427688,7.3432,136.18,136.14,1.46877065]
[1720758428498,7.3432,136.18,136.13,6.3915]
[1720758430095,7.25545418,136.18,136.13,6.3915]
[1720758431078,7.3428,136.19,136.13,6.3915]
[1720758431413,7.3428,136.19,136.14,1.46877286]
[1720758431565,7.3428,136.19,136.13,6.3915]
[1720758431566,7.3432,136.18,136.13,6.3915]
[1720758431765,7.3428,136.19,136.14,1.46877293]
[1720758432063,7.3428,136.19,136.15,1.46866505]
[1720758432264,7.3433,136.18,136.15,1.46866505]
[1720758432866,7.3433,136.18,136.14,1.46877326]
[1720758433085,7.3433,136.18,136.15,1.46877338]
[1720758433993,7.3433,136.18,136.14,1.46877222]
[1720758434191,7.3433,136.18,136.15,1.46877371]
[1720758434563,21.8733,136.18,136.15,1.46877371]
[1720758435321,21.8733,136.18,136.14,1.46877453]
[1720758435603,29.53437023,136.2,136.15,15.99870731]
[1720758435810,15.00437023,136.2,136.15,15.99870731]
[1720758436015,29.53437023,136.2,136.15,15.99870731]
[1720758436624,7.66187023,136.2,136.16,16.2238]
[1720758436913,7.3418,136.21,136.17,1.46845401]
[1720758437222,7.3418,136.21,136.18,1.46834657]
[1720758438190,7.3418,136.21,136.17,1.46846059]
[1720758438515,7.66173928,136.23,136.18,1.46835275]
[1720758438694,7.3414,136.22,136.18,1.46835275]
[1720758439028,7.3416,136.21,136.18,1.46835275]
[1720758439985,7.3412,136.22,136.18,1.46835275]
[1720758440327,7.66173928,136.23,136.18,6.0619]
[1720758440489,7.3395,136.25,136.19,45.0]
[1720758440695,13.4770967,136.26,136.2,1.4648704]
[1720758440912,7.65953595,136.25,136.21,1.46476285]
[1720758441099,13.4770967,136.26,136.21,1.46476285]
[1720758441411,10.30012127,136.26,136.22,16.80824254]
[1720758441593,2.96082127,136.26,136.22,16.3835]
[1720758442287,2.96082127,136.26,136.2,1.46789663]
[1720758442487,7.3401,136.24,136.18,22.4454]
[1720758442692,7.3406,136.23,136.18,22.4454]
[1720758443316,7.3401,136.24,136.18,22.4454]
[1720758443510,7.3395,136.25,136.19,45.0]
[1720758445422,2.96082127,136.26,136.19,45.0]
[1720758445912,7.65921781,136.28,136.19,45.0]
[1720758446296,7.3387,136.27,136.19,45.0]
[1720758446609,7.3389,136.26,136.19,45.0]
[1720758446812,7.3389,136.26,136.2,1.46789448]
[1720758446994,7.3389,136.26,136.21,1.46789483]
[1720758447922,7.3383,136.27,136.21,1.46789483]
[1720758448093,14.99721781,136.28,136.21,45.0]
[1720758448425,17.95803908,136.28,136.21,45.0]